[Event "FISU WUMSCC Men 2024"]
[Site "Entebbe"]
[Date "2024.06.30"]
[Round "9.1"]
[White "Gatineau, Yovann"]
[Black "Szpar, Milosz"]
[Result "1-0"]
[ECO "D18"]
[WhiteElo "2414"]
[BlackElo "2497"]
[Annotator "TA"]
[PlyCount "119"]
[EventDate "2024.06.24"]
[EventType "swiss"]
[EventCountry "UGA"]
[SourceTitle "playchess.com"]
[Source "ChessBase"]
[SourceQuality "1"]
[TimeControl "5400+30"]

{[%evp 26,118,-14,-7,0,0,0,-23,0,-15,27,0,1,-26,61,-20,106,36,27,0,83,-27,20,7,91,61,59,74,87,85,162,168,156,150,254,250,256,253,262,249,256,247,238,245,327,329,354,339,354,338,356,347,395,383,460,462,479,479,616,616,617,617,842,750,770,606,608,601,594,525,589,574,757,593,870,862,29991,2138,29977,29976,29996,29992,29992,29993,29996,29990,29990,29991,29994,29995,29997,29998,29998,29999,29999]} 1. d4 {[%emt 0:02:00]} d5 {[%emt 0:00:24]} 2. c4 {[%emt 0:00:18]} c6 {[%emt 0:00:05]} 3. Nf3 {[%emt 0:00:26]} Nf6 {[%emt 0:00:05]} 4. Nc3 {[%emt 0:00:10]} dxc4 {[%emt 0:00:37]} 5. a4 {[%emt 0:00:38]} Bf5 {[%emt 0:00:12]} 6. Nh4 {[%emt 0:00:20]} e6 {[%emt 0:00:13]} 7. Nxf5 {[%emt 0:00:55]} exf5 {[%emt 0:00:05]} 8. e3 {[%emt 0:00:13]} Bb4 {[%emt 0:00:05]} 9. Bxc4 {[%emt 0:00:14]} O-O {[%emt 0:00:05]} 10. O-O {[%emt 0:02:11]} Nbd7 {[%emt 0:00:18]} 11. Qc2 {[%emt 0:04:24]} g6 {[%emt 0:00:44]} 12. f3 {[%emt 0:00:57]} Rc8 {[%emt 0:00:53] D18: Slav Defence: 5 a4 Bf5 6 e3.} 13. Qf2 {[%emt 0:02:58]} c5 {[%emt 0:05:11]} 14. Ba2 {[%emt 0:10:50]} Re8 {[%emt 0:17:38]} 15. Kh1 {[%emt 0:04:37]} Qb6 {[%emt 0:14:20]} 16. Bd2 {[%emt 0:05:03]} a6 {[%emt 0:04:56]} 17. Rad1 {[%emt 0:05:09]} Ba5 {[%emt 0:08:30]} 18. Rb1 $146 {[%emt 0:11:33]} ({Predecessor:} 18. Bc1 cxd4 {½-½ Khenkin,I (2587)-De Vreugt,D (2466) Hoogeveen Essent op 2004 (9)}) 18... Qd6 {[%emt 0:05:43]} 19. Rbd1 {[%emt 0:08:25]} Bb6 {[%emt 0:01:51]} (19... cxd4 $11 20. exd4 Nb6) 20. Bc1 {[%emt 0:05:09]} (20. dxc5 $14 Bxc5 21. Qe2) 20... Re7 {[%emt 0:07:30] [#]} (20... cxd4 $11 21. exd4 Ba5) 21. Qh4 {[%emt 0:10:44]} (21. dxc5 $1 $16 Qxc5 22. Qh4) 21... cxd4 $1 $14 {[%emt 0:01:31]} 22. exd4 {[%emt 0:00:33]} (22. e4 {feels hotter.} Re5 23. Bg5 Kg7 24. Bf4) 22... Bc7 {[%emt 0:00:09]} (22... Ba5 $11 {remains equal.}) 23. g3 {[%emt 0:04:07]} (23. g4 $16) 23... Rce8 {[%emt 0:01:19]} (23... Ba5 $142) 24. Bg5 {[%emt 0:03:40]} (24. g4 {is more complex.} fxg4 25. fxg4 Ba5 26. g5) 24... Bb8 {[%emt 0:04:32]} (24... h5 $11) 25. Nd5 {[%emt 0:06:44]} Nxd5 {[%emt 0:05:10]} 26. Bxd5 {[%emt 0:00:11]} Qxd5 {[%emt 0:02:03]} (26... Re2 $2 27. Bxf7+ Kh8 (27... Kxf7 28. Qxh7+ Ke6 29. d5+) 28. Bxe8 Rxe8 29. Rfe1 $18) 27. Bxe7 {[%emt 0:00:05]} f4 {[%emt 0:00:42]} (27... h6 $16) 28. Qg5 $18 {[%emt 0:03:20]} Qc4 {[%emt 0:03:38]} 29. d5 {[%emt 0:03:17]} h6 {[%emt 0:03:24]} (29... Be5 $16 {is a better defense.}) 30. Qh4 $18 {[%emt 0:00:04]} (30. Qxh6 Rxe7 31. Rc1 Qe2 (31... Qxd5 32. Rc8+) 32. gxf4 Nf8 $17 (32... Qxb2 33. Rc8+)) 30... Be5 {[%emt 0:02:53]} 31. d6 {[%emt 0:00:34]} Rc8 {[%emt 0:00:59]} 32. Qg4 {[%emt 0:02:41]} ({But not} 32. Qxh6 $6 Rc5 33. Qh4 b6 34. gxf4 Bxf4) 32... Qxa4 {[%emt 0:00:05]} 33. b3 $1 {[%emt 0:01:51]} Qb5 {[%emt 0:00:59]} 34. gxf4 {[%emt 0:00:08]} h5 {[%emt 0:00:03]} 35. Qg5 {[%emt 0:00:35]} Bc3 {[%emt 0:01:49]} 36. Qxb5 {[%emt 0:00:51]} axb5 {[%emt 0:00:03]} 37. Rd5 {[%emt 0:00:10]} b4 {[%emt 0:00:05]} 38. f5 {[%emt 0:00:57]} Kg7 {[%emt 0:00:35]} 39. f4 {[%emt 0:01:09]} Ra8 {[%emt 0:00:13]} 40. fxg6 {[%emt 0:02:19]} fxg6 {[%emt 0:00:08]} 41. f5 {[%emt 0:00:00]} Be5 {[%emt 0:00:23]} 42. fxg6 {[%emt 0:00:00]} Kxg6 {[%emt 0:00:08]} 43. Rd2 {[%emt 0:00:00]} h4 {[%emt 0:02:05]} 44. Bxh4 {[%emt 0:00:34]} Kh5 {[%emt 0:00:35]} 45. Bg3 {[%emt 0:00:36]} Bc3 {[%emt 0:00:07]} 46. Rd5+ {[%emt 0:00:54]} Kg6 {[%emt 0:00:12]} 47. Bf4 {[%emt 0:00:25]} Ra2 {[%emt 0:00:15]} 48. Rg5+ {[%emt 0:00:32]} Kf6 {[%emt 0:00:04]} 49. Rg2 {[%emt 0:00:08]} Ra6 {[%emt 0:00:10]} 50. Re2 {[%emt 0:00:29]} Kf5 {[%emt 0:00:11]} 51. Re7 {[%emt 0:00:18]} (51. Bc1+ $142 Kg6 52. Rg2+ Kh7 53. Rf3 (53. Rf7+ Kh8 $18) 53... Bg7 54. Bb2 (54. Rf7 Kh8 55. Rfxg7 Nf6 56. Bb2 Rxd6 57. Rg8+ Kh7 58. R2g7+ Kh6 59. Bc1+ Rd2 60. Bxd2+ Kh5 61. Rh8+ Nh7 62. Rhxh7#) 54... Ne5 55. Bxe5 Ra1+ 56. Bxa1 Bh6 57. Rh3 (57. Rf7+ Bg7 58. Rfxg7+ Kh6 59. R2g3 Kh5 60. Rh7#) 57... b6 58. Rg7+ Kh8 59. Rxh6#) 51... Kg4 {[%emt 0:00:52]} 52. Rxd7 {[%emt 0:00:09]} Kh3 {[%emt 0:00:03]} 53. Rh7+ {[%emt 0:00:13]} Kg4 {[%emt 0:00:07]} 54. d7 {[%emt 0:00:11]} Bf6 {[%emt 0:00:18]} 55. h3+ {[%emt 0:00:19]} Kf5 {[%emt 0:00:05]} 56. Bg3+ {[%emt 0:00:06]} Ke6 {[%emt 0:01:03]} 57. Rxf6+ {[%emt 0:00:05]} Kd5 {[%emt 0:00:06]} 58. d8=Q+ {[%emt 0:00:17]} Ke4 {[%emt 0:13:01]} 59. Re7+ {[%emt 0:00:05]} Re6 {[%emt 0:00:00]} 60. Rexe6# {[%emt 0:00:03]} 1-0

[Event "FISU WUMSCC Men 2024"]
[Site "Entebbe"]
[Date "2024.06.30"]
[Round "9.3"]
[White "Mladek, Richard"]
[Black "Janik, Igor"]
[Result "1/2-1/2"]
[ECO "B06"]
[WhiteElo "2385"]
[BlackElo "2511"]
[Annotator "TA"]
[PlyCount "160"]
[EventDate "2024.06.24"]
[EventType "swiss"]
[EventCountry "UGA"]
[SourceTitle "playchess.com"]
[Source "ChessBase"]
[SourceQuality "1"]
[TimeControl "5400+30"]

{[%evp 62,160,386,341,417,508,483,481,502,492,517,520,436,520,496,456,516,522,503,492,475,387,456,436,378,227,470,354,346,-26,-29,-29,-18,-24,-23,-24,-24,-24,-22,-9,0,-71,-71,-71,-71,-71,-71,-71,-71,-71,-71,-71,-71,-71,-71,-71,-71,-71,-71,-71,-71,-71,-71,-71,-71,-71,-71,-71,-71,-71,-71,-71,-71,-71,-71,-71,-71,-71,-71,-71,-71,-71,-71,-71,-71,-71,-71,-71,-71,-71,-71,-71,-71,-71,-71,-71,-4,-4,0,0,0]} 1. d4 {[%emt 0:00:01]} g6 {[%emt 0:00:07]} 2. e4 {[%emt 0:00:22]} Bg7 {[%emt 0:00:11]} 3. Nf3 {[%emt 0:00:07]} d6 {[%emt 0:00:17]} 4. Bc4 {[%emt 0:00:23]} c6 {[%emt 0:00:11]} 5. O-O {[%emt 0:05:54]} d5 {[%emt 0:00:14]} 6. exd5 {[%emt 0:01:37]} cxd5 {[%emt 0:00:14]} 7. Bd3 {[%emt 0:02:15]} Nf6 {[%emt 0:00:19]} 8. Re1 {[%emt 0:00:48]} O-O {[%emt 0:00:31]} 9. c3 {[%emt 0:00:09]} Bf5 {[%emt 0:00:27] B06: Modern Defence.} 10. Bxf5 {[%emt 1:23:54]} gxf5 {[%emt 0:00:01]} 11. Qb3 $146 {[%emt 0:00:00]} ({Predecessor:} 11. Bf4 Nbd7 12. Ne5 Nxe5 13. Bxe5 e6 14. Nd2 Kh8 15. Re3 Rg8 16. Rh3 Ng4 17. Bxg7+ Rxg7 18. Nf3 Qb6 19. Qd2 Rag8 20. Nh4 Nf6 21. f3 Rg5 22. Re1 {½-½ Karapetayn,A (1971)-Elizarov,D (2341) Doroshkevich Memorial op 2010 (4)}) 11... Qc7 {[%emt 0:00:29]} 12. Ne5 {[%emt 0:00:00]} e6 {[%emt 0:00:42]} 13. Nd3 {[%emt 0:00:00]} Nbd7 {[%emt 0:01:43]} 14. Bf4 {[%emt 0:00:00]} Qc6 {[%emt 0:01:16]} 15. a4 {[%emt 0:00:00]} Nh5 {[%emt 0:02:37]} 16. Bg5 {[%emt 0:00:00]} Kh8 {[%emt 0:04:49]} 17. Na3 {[%emt 0:00:00]} a6 {[%emt 0:01:01]} 18. Rac1 {[%emt 0:00:00]} Rg8 {[%emt 0:03:18]} 19. Qd1 {[%emt 0:00:00]} Nhf6 {[%emt 0:02:17]} 20. Bf4 {[%emt 0:00:00]} Bf8 {[%emt 0:05:09]} 21. Re3 {[%emt 0:00:00]} Bd6 {[%emt 0:04:37]} 22. Ne5 {[%emt 0:00:00]} Bxe5 {[%emt 0:05:50]} 23. dxe5 {[%emt 0:00:00]} Ng4 {[%emt 0:02:00]} 24. Re2 {[%emt 0:00:00]} Rg6 {[%emt 0:00:39]} 25. h3 {[%emt 0:00:00]} Nh6 {[%emt 0:00:28]} 26. c4 {[%emt 0:00:00]} dxc4 {[%emt 0:07:11]} 27. g3 {[%emt 0:00:00]} b5 {[%emt 0:01:34]} 28. Rd2 {[%emt 0:00:00]} Nc5 {[%emt 0:02:09]} 29. Nxc4 {[%emt 0:00:00]} bxc4 {[%emt 0:01:11]} 30. Rxc4 {[%emt 0:00:00]} Kg7 {[%emt 0:00:43]} 31. Rd6 {[%emt 0:00:00]} Qb7 {[%emt 0:01:05]} 32. Rxc5 {[%emt 0:00:00]} Qxb2 {[%emt 0:00:13]} 33. Rd8 {[%emt 0:00:00]} Rxd8 {[%emt 0:03:51]} 34. Qxd8 {[%emt 0:00:00]} Ng8 {[%emt 0:00:05]} 35. Qd7 {[%emt 0:00:00]} Qb1+ {[%emt 0:02:45]} 36. Rc1 {[%emt 0:00:00]} Qe4 {[%emt 0:00:45]} 37. Rc7 {[%emt 0:00:00]} Nh6 {[%emt 0:00:05]} 38. Qd8 {[%emt 0:00:00]} Qe1+ {[%emt 0:02:13]} (38... Qxf4 39. Qf6+ Rxf6 40. exf6+ (40. gxf4 $2 Rg6+ 41. Kf1 Kh8 $19) 40... Kxf6 41. gxf4) 39. Kg2 {[%emt 0:00:00]} Qe4+ {[%emt 0:00:05]} 40. Kh2 {[%emt 0:00:00]} Qe2 {[%emt 0:00:33]} 41. Qd2 {[%emt 0:00:00]} Qf3 {[%emt 0:01:21]} 42. Kg1 {[%emt 0:00:00]} Ng8 {[%emt 0:02:23]} 43. Bg5 {[%emt 0:00:00]} Qh5 $2 {[%emt 0:02:56]} (43... Qd5 {keeps fighting.} 44. Qxd5 exd5) 44. h4 $18 {[%emt 0:00:00]} h6 {[%emt 0:00:32] [#]} 45. Qd7 $2 {[%emt 0:00:00]} (45. Bf4 $1 $18 {And now Qd7 would win.} Kh8 (45... Qxh4 $2 46. Qd7 $18) 46. Ra7 (46. Rxf7 Rxg3+ 47. fxg3 Qxf7 $14)) 45... hxg5 $11 {[%emt 0:00:13]} 46. Qxf7+ {[%emt 0:00:00]} Kh8 {[%emt 0:00:40]} 47. hxg5 $1 {[%emt 0:00:00]} ({Avoid the trap} 47. Rc8 $2 Qh6 (47... gxh4 $2 {perishes.} 48. Rxg8+ Rxg8 49. Qxh5+ $18) 48. h5 Rg7 $19 (48... Qxh5 $2 {loses.} 49. Rxg8+ Rxg8 50. Qxh5+ $18)) 47... Rxg5 {[%emt 0:01:28]} 48. Qxh5+ $1 {[%emt 0:01:53]} Rxh5 {[%emt 0:00:57]} 49. Ra7 {[%emt 0:01:03]} Rh7 {[%emt 0:01:32]} 50. Rxa6 {[%emt 0:00:12]} Re7 {[%emt 0:00:03]} 51. Ra8 {[%emt 0:01:35]} (51. a5 $11 {was the only way to keep the balance.}) 51... Kg7 $17 {[%emt 0:01:16]} 52. a5 {[%emt 0:00:44]} Rc7 {[%emt 0:00:17]} 53. Rb8 {[%emt 0:02:40]} Ra7 {[%emt 0:04:47]} 54. Rb6 {[%emt 0:00:08]} Rxa5 {[%emt 0:00:06]} 55. Rxe6 {[%emt 0:00:36]} Kf7 {[%emt 0:00:01]} 56. Rb6 {[%emt 0:00:32]} Rxe5 {[%emt 0:00:09]} 57. g4 {[%emt 0:03:12]} fxg4 {[%emt 0:00:17]} 58. f3 {[%emt 0:00:06]} gxf3 {[%emt 0:00:43]} 59. Kf2 {[%emt 0:00:11]} Nf6 {[%emt 0:00:05]} 60. Kxf3 {[%emt 0:00:06]} Kg6 {[%emt 0:00:13]} 61. Ra6 {[%emt 0:00:27]} Kf5 {[%emt 0:00:01]} 62. Ra8 {[%emt 0:00:14]} Rb5 {[%emt 0:00:07]} 63. Ke3 {[%emt 0:00:12]} Rb4 {[%emt 0:00:09]} 64. Ra5+ {[%emt 0:00:09]} Ke6 {[%emt 0:00:01]} 65. Kf3 {[%emt 0:00:44]} Nd7 {[%emt 0:00:07]} 66. Ra8 {[%emt 0:00:30]} Kf5 {[%emt 0:00:09]} 67. Ke3 {[%emt 0:00:14]} Re4+ {[%emt 0:00:04]} 68. Kd3 {[%emt 0:00:05]} Ne5+ {[%emt 0:00:04]} 69. Kc3 {[%emt 0:00:04]} Kf4 {[%emt 0:00:04]} 70. Rf8+ {[%emt 0:00:26]} Ke3 {[%emt 0:00:09]} 71. Rh8 {[%emt 0:00:06]} Rc4+ {[%emt 0:00:38]} 72. Kb3 {[%emt 0:00:01]} Rc7 {[%emt 0:00:06]} 73. Kb4 {[%emt 0:00:18]} Nd3+ {[%emt 0:00:11]} 74. Kb5 {[%emt 0:00:05]} Rc5+ {[%emt 0:00:12]} 75. Kb6 {[%emt 0:00:01]} Rd5 {[%emt 0:00:15]} 76. Rh3+ {[%emt 0:00:23]} Kd4 {[%emt 0:00:10]} 77. Rh4+ {[%emt 0:00:07] [#]} Kc3 $1 {[%emt 0:00:07]} 78. Kc6 {[%emt 0:00:07]} Nb4+ {[%emt 0:43:02]} (78... Rg5 $17) 79. Rxb4 $1 $11 {[%emt 0:00:06]} Rd6+ {[%emt 0:00:00]} 80. Kxd6 {[%emt 0:00:10]} Kxb4 {[%emt 0:01:00]} 1/2-1/2

[Event "FISU WUMSCC Men 2024"]
[Site "Entebbe"]
[Date "2024.06.30"]
[Round "9.4"]
[White "Turcan, Richard"]
[Black "Thilakarathne, G M H"]
[Result "1-0"]
[ECO "B90"]
[WhiteElo "2374"]
[BlackElo "2356"]
[Annotator "RC"]
[PlyCount "83"]
[EventDate "2024.06.24"]
[EventType "swiss"]
[EventCountry "UGA"]
[SourceTitle "playchess.com"]
[Source "ChessBase"]
[SourceQuality "1"]
[TimeControl "5400+30"]

1. e4 {[%emt 0:00:02]} c5 {[%emt 0:00:05]} 2. Nf3 {[%emt 0:00:09]} d6 {[%emt 0:00:04]} 3. d4 {[%emt 0:00:04]} cxd4 {[%emt 0:00:05]} 4. Nxd4 {[%emt 0:00:04]} Nf6 {[%emt 0:00:06]} 5. Nc3 {[%emt 0:00:03]} a6 {[%emt 0:00:08]} 6. h3 {[%emt 0:00:07]} e5 {[%emt 0:00:04]} 7. Nde2 {[%emt 0:00:06]} h5 {[%emt 0:00:04]} 8. Bg5 {[%emt 0:00:10]} Be6 {[%emt 0:01:33]} 9. Bxf6 {[%emt 0:00:16]} Qxf6 {[%emt 0:00:27]} 10. Nd5 {[%emt 0:00:06]} Qd8 {[%emt 0:00:24]} 11. Qd3 {[%emt 0:04:19]} Nd7 {[%emt 0:01:19]} 12. O-O-O {[%emt 0:00:56]} Nc5 {[%emt 0:01:22]} 13. Qf3 {[%emt 0:01:36]} Rc8 {[%emt 0:05:42]} 14. Kb1 {[%emt 0:03:04]} Be7 {[%emt 0:20:18]} 15. Nec3 {[%emt 0:05:18]} Bg5 {[%emt 0:01:34]} 16. g3 {[%emt 0:06:19]} b5 {[%emt 0:07:59]} 17. Qe2 {[%emt 0:11:18]} h4 {[%emt 0:04:07]} 18. a3 {[%emt 0:08:03]} Bh6 {[%emt 0:08:45]} 19. f4 {[%emt 0:08:50]} hxg3 {[%emt 0:02:31]} 20. f5 {[%emt 0:00:18]} Bxd5 {[%emt 0:03:18]} 21. Nxd5 {[%emt 0:00:24]} Qh4 {[%emt 0:00:50]} 22. Bg2 {[%emt 0:00:41]} Bg5 {[%emt 0:19:27]} 23. Bf3 {[%emt 0:04:25]} Rb8 {[%emt 0:05:18]} 24. Bg4 {[%emt 0:06:12]} O-O {[%emt 0:02:58]} 25. Rhf1 {[%emt 0:05:17]} Kh7 {[%emt 0:06:47]} 26. Rf3 {[%emt 0:03:47]} a5 {[%emt 0:03:16]} 27. b3 {[%emt 0:03:25]} b4 {[%emt 0:04:14]} 28. a4 {[%emt 0:00:11]} Bf4 {[%emt 0:00:39]} 29. f6 {[%emt 0:04:13]} g6 {[%emt 0:00:40]} 30. Nxf4 {[%emt 0:01:05]} exf4 {[%emt 0:00:02]} 31. Rxf4 {[%emt 0:00:40]} Rfe8 {[%emt 0:00:24]} 32. Qf3 {[%emt 0:01:53]} Qg5 {[%emt 0:00:50]} 33. h4 {[%emt 0:02:15]} Qe5 {[%emt 0:00:33]} 34. Bf5 {[%emt 0:05:42]} Rh8 {[%emt 0:00:54]} 35. Rd5 {[%emt 0:06:04]} g2 {[%emt 0:00:06]} 36. Rg4 {[%emt 0:00:12]} Qc3 {[%emt 0:01:37]} 37. Bxg6+ {[%emt 0:01:06]} Kg8 {[%emt 0:00:00]} 38. Qxg2 {[%emt 0:02:34]} Kf8 {[%emt 0:00:00]} 39. Bxf7 {[%emt 0:01:55]} Kxf7 {[%emt 0:00:37]} 40. Rg7+ {[%emt 0:00:07]} Ke8 {[%emt 0:00:45]} 41. Qg6+ {[%emt 0:01:00]} Kd8 {[%emt 0:00:01]} 42. Rxd6+ {[%emt 0:00:08]} 1-0

[Event "FISU WUMSCC Men 2024"]
[Site "Entebbe"]
[Date "2024.06.30"]
[Round "9.5"]
[White "Walter, Szymon"]
[Black "Szustakowski, Antoni"]
[Result "1/2-1/2"]
[ECO "C11"]
[WhiteElo "2313"]
[BlackElo "2362"]
[Annotator "RC"]
[PlyCount "67"]
[EventDate "2024.06.24"]
[EventType "swiss"]
[EventCountry "UGA"]
[SourceTitle "playchess.com"]
[Source "ChessBase"]
[SourceQuality "1"]
[TimeControl "5400+30"]

1. e4 {[%emt 0:00:03]} e6 {[%emt 0:00:06]} 2. d4 {[%emt 0:00:09]} d5 {[%emt 0:00:06]} 3. Nc3 {[%emt 0:00:13]} Nf6 {[%emt 0:00:06]} 4. e5 {[%emt 0:00:16]} Nfd7 {[%emt 0:00:04]} 5. f4 {[%emt 0:00:08]} c5 {[%emt 0:00:04]} 6. Nf3 {[%emt 0:00:08]} Nc6 {[%emt 0:00:04]} 7. Be3 {[%emt 0:00:09]} a6 {[%emt 0:00:08]} 8. Ne2 {[%emt 0:01:12]} Be7 {[%emt 0:09:03]} 9. c3 {[%emt 0:00:25]} O-O {[%emt 0:00:25]} 10. Qc2 {[%emt 0:00:24]} cxd4 {[%emt 0:08:47]} 11. Nexd4 {[%emt 0:00:14]} Nxd4 {[%emt 0:00:08]} 12. Bxd4 {[%emt 0:00:12]} Nc5 {[%emt 0:02:44]} 13. b4 {[%emt 0:02:05]} Ne4 {[%emt 0:00:16]} 14. Bd3 {[%emt 0:00:38]} Bd7 {[%emt 0:01:57]} 15. O-O {[%emt 0:01:00]} Bb5 {[%emt 0:01:49]} 16. Bxb5 {[%emt 0:23:23]} axb5 {[%emt 0:00:06]} 17. Nd2 {[%emt 0:00:04]} Nxd2 {[%emt 0:03:04]} 18. Qxd2 {[%emt 0:00:12]} f6 {[%emt 0:00:46]} 19. exf6 {[%emt 0:07:02]} Bxf6 {[%emt 0:00:13]} 20. Rae1 {[%emt 0:02:13]} Qd7 {[%emt 0:06:23]} 21. Re3 {[%emt 0:02:03]} Bxd4 {[%emt 0:02:44]} 22. cxd4 {[%emt 0:00:18]} Rac8 {[%emt 0:07:57]} 23. Rfe1 {[%emt 0:09:35]} Rxf4 {[%emt 0:09:37]} 24. Rxe6 {[%emt 0:00:17]} Rcf8 {[%emt 0:00:05]} 25. Qe3 {[%emt 0:10:24]} Qf7 {[%emt 0:01:34]} 26. h3 {[%emt 0:00:07]} h6 {[%emt 0:06:19]} 27. Re8 {[%emt 0:15:23]} Rxe8 {[%emt 0:04:03]} 28. Qxe8+ {[%emt 0:00:05]} Qxe8 {[%emt 0:00:03]} 29. Rxe8+ {[%emt 0:00:07]} Kh7 {[%emt 0:00:02]} 30. Rb8 {[%emt 0:00:15]} Rxd4 {[%emt 0:00:19]} 31. a3 {[%emt 0:00:05]} Rd3 {[%emt 0:00:03]} 32. Rxb7 {[%emt 0:00:09]} Rxa3 {[%emt 0:00:03]} 33. Rxb5 {[%emt 0:00:06]} Rb3 {[%emt 0:00:03]} 34. Rxd5 {[%emt 0:00:09]} 1/2-1/2

[Event "FISU WUMSCC Men 2024"]
[Site "Entebbe"]
[Date "2024.06.30"]
[Round "9.6"]
[White "Alrehaili, Ahmed Abdullah S"]
[Black "Alfaitori, Abdallah"]
[Result "1-0"]
[ECO "B12"]
[WhiteElo "2134"]
[BlackElo "1947"]
[Annotator "RC"]
[PlyCount "99"]
[EventDate "2024.06.24"]
[EventType "swiss"]
[EventCountry "UGA"]
[SourceTitle "playchess.com"]
[Source "ChessBase"]
[SourceQuality "1"]
[TimeControl "5400+30"]

1. e4 {[%emt 0:00:02]} c6 {[%emt 0:06:48]} 2. d4 {[%emt 0:00:08]} d5 {[%emt 0:00:07]} 3. e5 {[%emt 0:00:05]} Bf5 {[%emt 0:00:07]} 4. h4 {[%emt 0:00:05]} h5 {[%emt 0:00:16]} 5. c4 {[%emt 0:00:05]} dxc4 {[%emt 0:02:02]} 6. Bxc4 {[%emt 0:00:17]} e6 {[%emt 0:00:17]} 7. Ne2 {[%emt 0:01:30]} Ne7 {[%emt 0:02:54]} 8. Nbc3 {[%emt 0:01:06]} Nd5 {[%emt 0:02:42]} 9. Ng3 {[%emt 0:02:42]} Bg6 {[%emt 0:09:17]} 10. Nce4 {[%emt 0:04:47]} Nd7 {[%emt 0:03:50]} 11. Bg5 {[%emt 0:01:07]} Qa5+ {[%emt 0:07:22]} 12. Kf1 {[%emt 0:00:40]} f6 {[%emt 0:05:26]} 13. exf6 {[%emt 0:05:55]} gxf6 {[%emt 0:00:43]} 14. Bxd5 {[%emt 0:04:44]} Qxd5 {[%emt 0:12:31]} 15. Nxf6+ {[%emt 0:01:18]} Nxf6 {[%emt 0:00:10]} 16. Bxf6 {[%emt 0:00:11]} Rg8 {[%emt 0:03:28]} 17. Qb3 {[%emt 0:08:14]} Qxb3 {[%emt 0:03:09]} 18. axb3 {[%emt 0:00:07]} Bd6 {[%emt 0:02:09]} 19. Ne2 {[%emt 0:16:29]} Kd7 {[%emt 0:36:42]} 20. Rh3 {[%emt 0:03:34]} Be4 {[%emt 0:00:00]} 21. Bg5 {[%emt 0:00:29]} Be7 {[%emt 0:00:00]} 22. Re3 {[%emt 0:04:39]} Bd5 {[%emt 0:00:00]} 23. f4 {[%emt 0:04:45]} Bd6 {[%emt 0:00:00]} 24. Ng3 {[%emt 0:03:16]} Rh8 {[%emt 0:00:00]} 25. Ne4 {[%emt 0:01:26]} Bxe4 {[%emt 0:00:00]} 26. Rxe4 {[%emt 0:00:03]} a6 {[%emt 0:00:00]} 27. Kf2 {[%emt 0:00:52]} Rhf8 {[%emt 0:00:00]} 28. Kf3 {[%emt 0:00:27]} Rf5 {[%emt 0:00:00]} 29. g4 {[%emt 0:01:13]} hxg4+ {[%emt 0:00:00]} 30. Kxg4 {[%emt 0:00:03]} Rb5 {[%emt 0:00:00]} 31. Re3 {[%emt 0:00:13]} Bb4 {[%emt 0:01:47]} 32. h5 {[%emt 0:01:32]} Rh8 {[%emt 0:01:57]} 33. Re5 {[%emt 0:01:16]} Rh7 {[%emt 0:02:27]} 34. h6 {[%emt 0:00:46]} Bf8 {[%emt 0:00:25]} 35. Rxb5 {[%emt 0:00:25]} axb5 {[%emt 0:00:44]} 36. Kh5 {[%emt 0:00:09]} Bxh6 {[%emt 0:00:38]} 37. Bxh6 {[%emt 0:00:13]} Kd6 {[%emt 0:00:19]} 38. Kg6 {[%emt 0:00:09]} Rh8 {[%emt 0:00:17]} 39. Re1 {[%emt 0:00:31]} b6 {[%emt 0:00:42]} 40. Kg7 {[%emt 0:00:49]} Ra8 {[%emt 0:00:20]} 41. Kf7 {[%emt 0:00:24]} Ra2 {[%emt 0:00:53]} 42. Rxe6+ {[%emt 0:00:34]} Kd5 {[%emt 0:00:18]} 43. Bg7 {[%emt 0:01:11]} Rxb2 {[%emt 0:00:40]} 44. Re5+ {[%emt 0:00:09]} Kd6 {[%emt 0:00:20]} 45. b4 {[%emt 0:00:16]} Rd2 {[%emt 0:00:28]} 46. f5 {[%emt 0:00:19]} Kd7 {[%emt 0:00:42]} 47. Re6 {[%emt 0:00:35]} c5 {[%emt 0:00:31]} 48. bxc5 {[%emt 0:00:23]} bxc5 {[%emt 0:00:17]} 49. dxc5 {[%emt 0:00:04]} Rd5 {[%emt 0:00:43]} 50. Rd6+ {[%emt 0:00:03]} 1-0

[Event "FISU WUMSCC Men 2024"]
[Site "Entebbe"]
[Date "2024.06.30"]
[Round "9.7"]
[White "Nyola Wasswa Mark"]
[Black "Kato, Richard"]
[Result "1/2-1/2"]
[ECO "C10"]
[WhiteElo "2067"]
[BlackElo "1908"]
[Annotator "RC"]
[PlyCount "31"]
[EventDate "2024.06.24"]
[EventType "swiss"]
[EventCountry "UGA"]
[SourceTitle "playchess.com"]
[Source "ChessBase"]
[SourceQuality "1"]
[TimeControl "5400+30"]

1. e4 {[%emt 0:00:20]} e6 2. Nf3 c5 {[%emt 0:01:40]} 3. d4 {[%emt 0:00:41]} d5 {[%emt 0:00:15]} 4. Nc3 {[%emt 0:00:28]} Nf6 {[%emt 0:00:34]} 5. Bg5 {[%emt 0:00:23]} cxd4 {[%emt 0:01:42]} 6. Qxd4 {[%emt 0:00:09]} dxe4 {[%emt 0:00:41]} 7. Qxd8+ {[%emt 0:00:32]} Kxd8 {[%emt 0:00:04]} 8. Nxe4 {[%emt 0:00:05]} Be7 {[%emt 0:00:25]} 9. O-O-O+ {[%emt 0:00:05]} Bd7 {[%emt 0:00:33]} 10. Bxf6 {[%emt 0:01:09]} gxf6 {[%emt 0:00:13]} 11. Bb5 {[%emt 0:00:15]} Kc7 {[%emt 0:00:37]} 12. Nd4 {[%emt 0:00:32]} a6 {[%emt 0:00:11]} 13. Bxd7 {[%emt 0:00:12]} Nxd7 {[%emt 0:00:01]} 14. g3 {[%emt 0:00:36]} Rad8 {[%emt 0:00:47]} 15. f4 {[%emt 0:00:18]} f5 {[%emt 0:01:25]} 16. Nc3 {[%emt 0:00:38]} 1/2-1/2